bitfinex/quotes_BTCUSD_20251212
["timestamp","ask_amount","ask_price","bid_price","bid_amount"]
[1765519314141,0.01831,92460.0,92458.0,0.002]
[1765519314383,0.02731,92460.0,92458.0,0.002]
[1765519315254,0.02031,92460.0,92458.0,0.001]
[1765519315690,0.01831,92460.0,92457.0,0.01220423]
[1765519315897,0.03112548,92460.0,92457.0,0.0013884]
[1765519316121,0.02381,92459.0,92457.0,0.0013884]
[1765519316331,0.02381,92459.0,92458.0,0.001]
[1765519316526,0.02381,92459.0,92457.0,0.0013884]
[1765519316759,0.01638,92458.0,92457.0,0.0023884]
[1765519316955,0.04019,92458.0,92457.0,0.0013884]
[1765519317168,0.04019,92458.0,92457.0,0.0003884]
[1765519317380,0.14561676,92458.0,92457.0,0.0013884]
[1765519318024,0.19017312,92458.0,92457.0,0.0013884]
[1765519318563,0.19017312,92458.0,92457.0,0.0003884]
[1765519318967,0.20517312,92458.0,92457.0,0.0023884]
[1765519320647,0.18040124,92458.0,92457.0,0.0023884]
[1765519321366,0.20045749,92458.0,92457.0,0.0023884]
[1765519322415,0.21176749,92458.0,92457.0,0.0023884]
[1765519322616,0.015,92458.0,92457.0,0.0522284]
[1765519322840,0.015,92458.0,92457.0,0.34454127]
[1765519323797,0.008,92458.0,92457.0,0.34354127]
[1765519324169,0.01131,92483.0,92479.0,0.01081326]
[1765519324688,0.01131,92483.0,92481.0,0.24339016]
[1765519325658,0.00423157,92482.0,92481.0,0.24339016]
[1765519325856,0.00023157,92482.0,92481.0,0.24339016]
[1765519326261,0.01723157,92482.0,92481.0,0.24539016]
[1765519327468,0.01723157,92482.0,92481.0,0.28370016]
[1765519327692,0.01723157,92482.0,92481.0,0.28531303]
[1765519328255,0.01723157,92482.0,92481.0,0.57601303]
[1765519328628,0.00923157,92482.0,92481.0,0.57501303]
[1765519328823,0.01023157,92482.0,92481.0,0.57701303]
[1765519329024,0.00123157,92482.0,92481.0,0.57601303]
[1765519329386,0.00123157,92482.0,92481.0,0.57801303]
[1765519334002,0.00123157,92482.0,92481.0,0.60182303]
[1765519334826,0.00123157,92482.0,92481.0,0.61886303]
[1765519338598,0.00123157,92482.0,92481.0,0.66199101]
[1765519339221,0.00123157,92482.0,92481.0,0.61886303]
[1765519346118,0.00123157,92482.0,92481.0,0.59505303]
[1765519346397,0.00123157,92482.0,92481.0,0.60634303]
[1765519347079,0.00023157,92482.0,92481.0,0.60434303]
[1765519347461,0.00123157,92482.0,92481.0,0.60534303]
[1765519347675,0.00123157,92482.0,92481.0,0.60734303]
[1765519348295,0.00123157,92482.0,92481.0,0.60534303]
[1765519348538,0.00223157,92482.0,92481.0,0.60834303]
[1765519351768,0.00223157,92482.0,92481.0,0.60859455]
[1765519353229,0.00223157,92482.0,92481.0,0.66658329]
[1765519354100,0.00223157,92482.0,92481.0,0.60859455]
[1765519363785,0.00223157,92482.0,92481.0,0.65172253]
[1765519370212,0.00223157,92482.0,92481.0,0.60859455]
[1765519370509,0.0004,92490.0,92489.0,0.51694842]
[1765519370661,0.0004,92490.0,92489.0,0.53480129]
[1765519370862,0.0004,92490.0,92489.0,0.55826129]
[1765519371099,0.0004,92490.0,92489.0,0.56258837]
[1765519371300,0.0004,92490.0,92489.0,0.5905469]
[1765519371708,0.00051641,92490.0,92489.0,0.5905469]
[1765519372082,0.00051641,92490.0,92489.0,0.5935469]
[1765519372291,0.00051641,92490.0,92489.0,0.5905469]
[1765519372888,0.00151641,92490.0,92489.0,0.61038225]
[1765519373758,0.00151641,92490.0,92489.0,0.61338225]
[1765519374127,0.00151641,92490.0,92489.0,0.61038225]
[1765519374339,0.00151641,92490.0,92489.0,0.61338225]
[1765519376508,0.00174664,92490.0,92489.0,0.61338225]
[1765519377028,0.00174664,92490.0,92489.0,0.66340064]
[1765519380766,0.00174664,92490.0,92489.0,0.74060117]
[1765519381193,0.00174664,92490.0,92489.0,0.69058278]
[1765519381636,0.00174664,92490.0,92489.0,0.70762278]
[1765519381846,0.00174664,92490.0,92489.0,0.67966425]
[1765519382653,0.00174664,92490.0,92489.0,0.59245723]
[1765519382865,0.00174664,92490.0,92489.0,0.66965052]
[1765519383914,0.00174664,92490.0,92489.0,0.7127785]
[1765519384053,0.00174664,92490.0,92489.0,0.63558521]
[1765519384257,0.00174664,92490.0,92489.0,0.71277634]
[1765519384811,0.00174664,92490.0,92489.0,0.7127758]
[1765519388083,0.00174664,92490.0,92489.0,0.63558521]
[1765519398389,0.00174664,92490.0,92489.0,0.59245723]
[1765519398858,0.00174664,92490.0,92489.0,0.63558521]
[1765519399453,0.00026936,92490.0,92489.0,0.63558521]
[1765519399697,0.00026936,92490.0,92489.0,0.57541723]
[1765519399891,0.00026936,92490.0,92489.0,0.59245723]
[1765519400127,0.00026936,92490.0,92489.0,0.30175723]
[1765519400524,0.00026936,92490.0,92489.0,0.59245723]
[1765519410457,0.00026936,92490.0,92489.0,0.57541723]
[1765519410791,0.00026936,92490.0,92489.0,0.59245723]
[1765519413424,0.00026936,92490.0,92489.0,0.63558521]
[1765519420034,0.00026936,92490.0,92489.0,0.59245723]
[1765519421090,0.00026936,92490.0,92489.0,0.57541723]
[1765519421265,0.00026936,92490.0,92489.0,0.59245723]
[1765519426393,0.00026936,92490.0,92489.0,0.57662188]
[1765519435260,0.00026936,92490.0,92489.0,0.65408834]
[1765519438747,0.00026936,92490.0,92489.0,0.59573547]
[1765519439037,0.00026936,92490.0,92489.0,0.53530901]
[1765519441121,0.00026936,92490.0,92489.0,0.57342901]
[1765519441961,0.00026936,92490.0,92489.0,0.51826901]
[1765519443607,0.00023023,92490.0,92489.0,0.51126901]
[1765519444009,0.00023023,92490.0,92489.0,0.51726901]
[1765519466349,0.00023023,92490.0,92489.0,0.56762901]
[1765519467118,0.00023023,92490.0,92489.0,0.56924188]
[1765519470716,0.00023023,92490.0,92489.0,0.57924837]
[1765519471100,0.00023023,92490.0,92489.0,0.56924188]
[1765519477552,0.00023023,92490.0,92489.0,0.61236986]
[1765519481679,3.586e-05,92490.0,92489.0,0.61236986]
[1765519482516,3.586e-05,92490.0,92489.0,0.60936986]
[1765519482895,3.586e-05,92490.0,92489.0,0.60636986]
[1765519483254,3.586e-05,92490.0,92489.0,0.61036986]
[1765519483450,3.586e-05,92490.0,92489.0,0.66038825]
[1765519484425,3.586e-05,92490.0,92489.0,0.66338825]
[1765519495486,9e-05,92518.0,92489.0,0.66338825]
[1765519495487,0.0002,92540.0,92537.0,0.01080648]
[1765519495687,0.0002,92540.0,92539.0,0.54638445]
[1765519495688,0.00031647,92540.0,92539.0,0.54638445]
[1765519495923,0.0002,92550.0,92549.0,0.59994811]
[1765519496096,0.0002,92550.0,92549.0,0.57948259]
[1765519496268,0.0002,92550.0,92549.0,0.60273259]
[1765519496860,0.0002,92550.0,92549.0,0.14594924]
[1765519497092,0.0002,92550.0,92549.0,0.39000951]
[1765519497295,0.0002,92560.0,92559.0,1.27610327]
[1765519497632,0.0002,92560.0,92559.0,1.31133614]
[1765519497774,0.0002,92560.0,92559.0,1.33458614]
[1765519498166,0.0002,92570.0,92569.0,0.30920142]
[1765519498394,0.0002,92570.0,92569.0,0.33875429]
[1765519498588,0.0002,92570.0,92569.0,0.36200429]
[1765519498815,0.0002,92570.0,92569.0,0.65702696]
[1765519499386,0.0002,92570.0,92569.0,0.68574669]
[1765519499793,0.0002,92570.0,92569.0,0.65702696]
[1765519499996,0.0002,92570.0,92569.0,1.65702696]
[1765519500205,0.0002,92570.0,92569.0,1.6759572]
[1765519500418,1e-08,92570.0,92569.0,1.6789572]
[1765519501032,0.0002,92580.0,92579.0,0.59987808]
[1765519501275,0.00278746,92580.0,92579.0,1.66755903]
[1765519501447,1e-08,92580.0,92579.0,1.69080903]
[1765519501663,0.0002,92590.0,92589.0,0.59985475]
[1765519501664,1e-08,92590.0,92589.0,0.59985475]
[1765519501866,1e-08,92590.0,92589.0,1.62940762]
[1765519502045,0.00954448,92640.0,92631.0,0.21591021]
[1765519502247,0.22543559,92640.0,92634.0,0.01079517]
[1765519502537,0.22543559,92640.0,92631.0,0.21591021]
[1765519502538,9e-05,92643.0,92640.0,0.01079447]
[1765519502736,9e-05,92643.0,92639.0,0.03240808]
[1765519502939,9e-05,92643.0,92640.0,0.01079447]
[1765519503159,9e-05,92643.0,92640.0,0.22668216]
[1765519503363,0.01521,92641.0,92639.0,0.03240808]
[1765519503596,0.26045514,92636.0,92626.0,0.0107961]
[1765519503811,0.27566514,92636.0,92625.0,0.0432043]
[1765519504027,0.27566514,92636.0,92625.0,0.03240808]
[1765519504366,0.01079587,92628.0,92625.0,0.03240808]
[1765519504670,0.00302,92626.0,92625.0,0.0432043]
[1765519504864,0.01823,92626.0,92625.0,0.03240808]
[1765519505294,0.01823,92626.0,92625.0,0.04320395]
[1765519506188,0.01823,92626.0,92625.0,0.01079587]
[1765519506387,0.04344089,92626.0,92625.0,0.01079587]
[1765519506598,0.04344089,92626.0,92625.0,0.01179587]
[1765519506808,0.07584897,92626.0,92625.0,0.001]
[1765519506955,0.10283923,92626.0,92625.0,0.001]
[1765519507384,0.10283923,92626.0,92609.0,0.03240808]
[1765519507385,0.21595473,92612.0,92609.0,0.03240808]
[1765519507732,0.01612923,92612.0,92609.0,0.04320616]
[1765519507929,0.01612923,92612.0,92609.0,0.03240808]
[1765519508126,0.03133923,92612.0,92609.0,0.03240808]
[1765519509179,0.03133923,92612.0,92609.0,0.04320616]
[1765519509379,0.01612923,92612.0,92609.0,0.04320616]
[1765519509789,0.01712923,92612.0,92609.0,0.04320616]
[1765519509999,0.03233923,92612.0,92609.0,0.04320616]
[1765519510194,0.03233923,92612.0,92611.0,0.03340808]
[1765519510409,0.01712923,92612.0,92611.0,0.001]
[1765519511882,0.03233923,92612.0,92611.0,0.001]
[1765519513170,0.12608793,92612.0,92611.0,0.001]
[1765519513543,0.09397559,92612.0,92611.0,0.001]
[1765519514990,0.01079878,92603.0,92600.0,0.01079913]
[1765519515404,0.02190331,92601.0,92600.0,0.01079913]
[1765519515556,0.02190331,92601.0,92597.0,0.22678906]
[1765519515768,0.01521,92598.0,92597.0,0.22678906]
[1765519516292,0.03042,92598.0,92597.0,0.22678906]
[1765519516969,0.03142,92598.0,92597.0,0.22678906]
[1765519517379,0.03142,92598.0,92596.0,0.01688901]
[1765519517647,0.01521,92597.0,92596.0,0.01688901]
[1765519517873,0.03042,92597.0,92596.0,0.01688901]
[1765519518082,0.01559825,92597.0,92596.0,0.01688901]
[1765519518916,0.21601161,92588.0,92587.0,0.01619669]
[1765519519092,0.24643161,92588.0,92587.0,0.01619669]
[1765519519531,0.03042,92588.0,92587.0,0.01619669]
[1765519519845,0.00912,92591.0,92590.0,0.22680519]
[1765519520192,0.02433,92591.0,92590.0,0.22680519]
[1765519521401,0.02433,92591.0,92590.0,0.22880519]
[1765519522020,0.02433,92591.0,92590.0,0.0128003]
[1765519522446,0.21638021,92597.0,92596.0,0.2907]
[1765519522447,0.00038825,92597.0,92596.0,0.2907]
[1765519522617,0.00038825,92597.0,92596.0,0.38807085]
[1765519522833,0.00038825,92597.0,92596.0,0.41675067]
[1765519523205,0.00038825,92597.0,92596.0,0.38807085]
[1765519523410,0.00038825,92597.0,92596.0,0.42628243]
[1765519523843,0.00038825,92597.0,92596.0,0.42828243]
[1765519524074,0.00038825,92597.0,92596.0,0.42928243]
[1765519524512,0.01079482,92637.0,92596.0,0.42928243]
[1765519524513,0.00199998,92680.0,92640.0,0.01079447]
[1765519524699,0.05835189,92697.0,92640.0,0.01079447]
[1765519524700,0.00020649,92643.0,92642.0,0.27600343]
[1765519524941,0.00020649,92643.0,92642.0,0.2776163]
[1765519525141,0.00020649,92643.0,92642.0,0.3025263]
[1765519525651,0.00020649,92643.0,92642.0,0.33492764]
[1765519525852,0.00020649,92643.0,92642.0,0.31001764]
[1765519526057,0.00020649,92643.0,92642.0,0.33492764]
[1765519526449,0.00020649,92643.0,92642.0,0.33592764]
[1765519526450,0.00120649,92643.0,92642.0,0.33592764]
[1765519526886,0.00120649,92643.0,92642.0,0.31101764]
[1765519527069,0.00020649,92643.0,92642.0,0.2786163]
[1765519527267,0.00201561,92643.0,92642.0,0.2796163]
[1765519528399,0.00201561,92643.0,92642.0,0.30837649]
[1765519529334,0.00201561,92643.0,92642.0,0.3045263]
[1765519529593,0.00201561,92643.0,92642.0,0.28831894]
[1765519530147,0.00201561,92643.0,92642.0,0.24718894]
[1765519530368,0.00201561,92643.0,92642.0,0.03688414]
[1765519530580,0.00201561,92643.0,92642.0,0.38039433]
[1765519530857,0.00201561,92643.0,92642.0,0.36871414]
[1765519532013,0.00201561,92643.0,92642.0,0.03688414]
[1765519532452,0.00201561,92643.0,92642.0,0.07801414]
[1765519535711,0.01722561,92643.0,92642.0,0.02069287]
[1765519535911,0.01722561,92643.0,92642.0,0.002]
[1765519535912,0.03243561,92643.0,92642.0,0.002]
[1765519536536,0.03243561,92643.0,92642.0,0.001]
[1765519536749,0.0107947,92638.0,92635.0,0.01619127]
[1765519536898,0.0213,92636.0,92635.0,0.01619127]
[1765519537109,0.02290823,92636.0,92635.0,0.01619127]
[1765519537307,0.03811823,92636.0,92635.0,0.01619127]
[1765519538409,0.03206293,92636.0,92635.0,0.01619127]
[1765519538622,0.01685293,92636.0,92635.0,0.01619127]
[1765519538779,0.01685293,92636.0,92635.0,0.01719127]
[1765519539174,0.01685293,92636.0,92635.0,0.01619127]
[1765519539718,0.00160823,92636.0,92635.0,0.01619127]
[1765519541309,0.00160823,92636.0,92635.0,0.05893414]
[1765519541487,0.00160823,92636.0,92635.0,0.03402414]
[1765519542673,0.00160823,92636.0,92635.0,0.05893414]
[1765519543281,0.00160823,92636.0,92635.0,0.07143483]
[1765519544938,0.00160823,92636.0,92635.0,0.07243483]
[1765519545543,0.00160823,92636.0,92635.0,0.07343483]
[1765519545747,0.00160823,92636.0,92635.0,0.36413483]
[1765519547614,0.00160823,92636.0,92635.0,0.37414132]
[1765519547815,0.00160823,92636.0,92635.0,0.36413483]
[1765519548708,0.00160823,92636.0,92635.0,0.03230483]
[1765519548922,0.00160823,92636.0,92635.0,0.04938483]
[1765519549457,0.00160823,92636.0,92635.0,0.07812765]
[1765519549800,0.00160823,92636.0,92635.0,0.11779765]
[1765519550036,0.00160823,92636.0,92635.0,0.08905483]
[1765519550990,0.00160823,92636.0,92635.0,0.09906132]
[1765519551167,0.00160823,92636.0,92635.0,0.1565396]
[1765519551372,0.00160823,92636.0,92635.0,0.38976132]
[1765519551829,0.00160823,92636.0,92635.0,0.37975483]
[1765519552002,0.00160823,92636.0,92635.0,0.08905483]
[1765519552210,0.00160823,92636.0,92635.0,0.14666602]
[1765519552415,0.00160823,92636.0,92635.0,0.08905483]
[1765519553404,0.00160823,92636.0,92635.0,0.06531483]
[1765519553618,0.00160823,92636.0,92635.0,0.04938483]
[1765519554068,0.00160823,92636.0,92635.0,0.06531483]
[1765519554295,0.00160823,92636.0,92635.0,0.08905483]
[1765519558130,0.00160823,92636.0,92635.0,0.06531483]
[1765519558533,0.00160823,92636.0,92635.0,0.04938483]
[1765519560574,0.01992823,92636.0,92635.0,0.05301363]
[1765519560775,0.01992823,92636.0,92635.0,0.01450069]
[1765519561311,0.02992912,92636.0,92635.0,0.01450069]
[1765519561718,0.02992912,92636.0,92635.0,0.01350069]
[1765519561928,0.02992912,92636.0,92635.0,0.01250069]
[1765519562663,0.03092912,92636.0,92635.0,0.01250069]
[1765519564164,0.03292912,92636.0,92635.0,0.01250069]
[1765519564363,0.02992912,92636.0,92635.0,0.01250069]
[1765519564775,0.03192912,92636.0,92635.0,0.01250069]
[1765519565167,0.03392912,92636.0,92635.0,0.01250069]
[1765519568144,0.06091646,92636.0,92635.0,0.01250069]
[1765519568357,0.05091557,92636.0,92635.0,0.01250069]
[1765519568726,0.01476823,92636.0,92635.0,0.01250069]
[1765519569728,0.00560823,92636.0,92635.0,0.01250069]
[1765519569924,0.00160823,92636.0,92635.0,0.01250069]
[1765519570136,0.00360823,92636.0,92635.0,0.01250069]
[1765519570349,0.00460823,92636.0,92635.0,0.01250069]
[1765519570549,0.00360823,92636.0,92635.0,0.02500138]
[1765519570751,0.00160823,92636.0,92635.0,0.02500138]
[1765519574903,0.00160823,92636.0,92635.0,0.02661425]
[1765519575313,0.00160823,92636.0,92635.0,0.04254425]
[1765519575509,0.00160823,92636.0,92635.0,0.06628425]
[1765519576413,0.00160823,92636.0,92635.0,0.06728425]
[1765519576743,0.00160823,92636.0,92635.0,0.09617586]
[1765519576946,0.00160823,92636.0,92635.0,0.06828425]
[1765519577560,0.00160823,92636.0,92635.0,0.11141223]
[1765519577971,0.00160823,92636.0,92635.0,0.40211223]
[1765519578212,0.00160823,92636.0,92635.0,0.43007076]
[1765519578555,0.00160823,92636.0,92635.0,0.40211223]
[1765519578984,0.00160823,92636.0,92635.0,0.06828425]
[1765519579616,0.00160823,92636.0,92635.0,0.11141223]
[1765519582204,0.00160823,92636.0,92635.0,0.12830913]
[1765519583137,0.00160823,92636.0,92635.0,0.12730913]
[1765519583575,0.00160823,92636.0,92635.0,0.12830913]
[1765519587183,0.00160823,92636.0,92635.0,1.41900913]
[1765519587390,0.00160823,92636.0,92635.0,1.48765639]
[1765519588731,0.00160823,92636.0,92635.0,1.48665639]
[1765519588935,0.00160823,92636.0,92635.0,1.48565639]
[1765519589168,0.00160823,92636.0,92635.0,1.51861492]
[1765519589390,0.00160823,92636.0,92635.0,1.48964053]
[1765519589599,0.00160823,92636.0,92635.0,1.461682]
[1765519589827,0.00020649,92643.0,92642.0,1.56660968]
[1765519589979,0.00020649,92643.0,92642.0,1.71530676]
[1765519590178,0.00020649,92643.0,92642.0,1.66663108]
[1765519590794,0.0002,92670.0,92669.0,0.2158219]
[1765519591031,0.0002,92670.0,92669.0,0.2494719]
[1765519591191,0.0002,92670.0,92669.0,0.2742719]
[1765519591391,0.0002,92670.0,92669.0,0.27588477]
[1765519592267,0.0002,92670.0,92669.0,0.30458644]
[1765519592601,0.0002,92670.0,92669.0,0.27588477]
[1765519593772,0.0002,92670.0,92669.0,0.29222034]
[1765519594388,0.0002,92670.0,92669.0,0.67606671]
[1765519595058,0.0002,92670.0,92669.0,0.73351867]
[1765519595268,0.0002,92670.0,92669.0,0.67606671]
[1765519595848,0.0002,92670.0,92669.0,0.73351867]
[1765519596058,0.0002,92670.0,92669.0,0.67606671]
[1765519596283,0.00117576,92670.0,92669.0,0.67606671]
[1765519596487,0.00117576,92670.0,92669.0,0.73336714]
[1765519597244,0.00117576,92670.0,92669.0,0.67606671]
[1765519597461,0.00117576,92670.0,92669.0,0.67706671]
[1765519597675,0.22649984,92716.0,92669.0,0.67706671]
[1765519597676,0.00916,92712.0,92711.0,0.0107862]
[1765519597889,0.00038794,92712.0,92711.0,0.0107862]
[1765519598086,0.00159253,92712.0,92711.0,0.04516034]
[1765519598295,0.00159253,92712.0,92711.0,0.02859034]
[1765519598526,0.23563613,92712.0,92707.0,0.01078667]
[1765519598757,0.04455636,92709.0,92708.0,0.02795853]
[1765519598972,0.03612551,92711.0,92708.0,0.01078655]
[1765519599213,0.00916,92709.0,92708.0,0.22651679]
[1765519599658,0.00338794,92712.0,92711.0,0.21572413]
[1765519599861,0.00238794,92712.0,92711.0,0.21572413]
[1765519599996,0.01870794,92712.0,92711.0,0.21572413]
[1765519600831,0.01870794,92712.0,92710.0,0.21572645]
[1765519601036,0.00954794,92712.0,92711.0,0.01619127]
[1765519601583,0.00954794,92712.0,92700.0,0.01078748]
[1765519601584,0.01078632,92710.0,92700.0,0.01078748]
[1765519601808,0.21574274,92703.0,92696.0,0.2319487]
[1765519602028,0.02696813,92702.0,92697.0,0.01078783]
[1765519602215,0.02696813,92702.0,92701.0,0.2157474]
[1765519602441,0.02696726,92705.0,92703.0,0.21574274]
[1765519602659,0.002,92710.0,92709.0,0.01078643]
[1765519602799,0.003,92710.0,92709.0,0.01078643]
[1765519603014,0.001,92710.0,92709.0,0.01078643]
[1765519603214,0.00038794,92712.0,92710.0,0.21572645]
[1765519603423,0.00038794,92712.0,92711.0,0.01619127]
[1765519603927,0.00954794,92712.0,92711.0,0.01619127]
[1765519604127,0.01075253,92712.0,92711.0,0.01619127]
[1765519604332,0.01991253,92712.0,92709.0,0.22651416]
[1765519604591,0.00954794,92712.0,92711.0,0.01619127]
[1765519605216,0.01154794,92712.0,92711.0,0.01619127]
[1765519605368,0.02370794,92712.0,92711.0,0.01619127]
[1765519605694,0.01254794,92712.0,92711.0,0.01619127]
[1765519605929,0.05167316,92712.0,92711.0,0.01619127]
[1765519609361,0.01078667,92707.0,92704.0,0.01078702]
[1765519609580,0.02696667,92707.0,92704.0,0.01078702]
[1765519609788,0.00916,92705.0,92704.0,0.01078702]
[1765519610150,0.0101639,92705.0,92704.0,0.01078702]
[1765519610489,0.0101639,92705.0,92702.0,0.01078725]
[1765519610693,0.00916,92703.0,92702.0,0.01078725]
[1765519610897,0.05534373,92701.0,92697.0,0.01078783]
[1765519611050,0.04455636,92701.0,92698.0,0.01078771]
[1765519611251,0.00916,92700.0,92698.0,0.01078771]
[1765519611462,0.00916,92700.0,92698.0,0.22654192]
[1765519611463,0.01832,92699.0,92698.0,0.22654192]
[1765519611923,0.00916,92699.0,92698.0,0.22654192]
[1765519612168,0.0269658,92710.0,92707.0,0.01078667]
[1765519612377,0.01117403,92712.0,92709.0,0.01078643]
[1765519612527,0.00916,92708.0,92706.0,0.01078678]
[1765519612733,0.00916,92707.0,92703.0,0.01078713]
[1765519612958,0.00916,92704.0,92703.0,0.01078713]
[1765519613476,0.01832,92704.0,92703.0,0.01078713]
[1765519613681,0.00916,92704.0,92703.0,0.01078713]
[1765519613811,0.01832,92704.0,92703.0,0.01078713]
[1765519614652,0.01832,92704.0,92701.0,0.01078737]
[1765519614824,0.00916,92702.0,92701.0,0.01078737]
[1765519616045,0.01832,92702.0,92701.0,0.01078737]
[1765519616309,0.01932,92702.0,92701.0,0.01078737]
[1765519616486,0.02132,92702.0,92701.0,0.01078737]
[1765519618072,0.02132,92702.0,92697.0,0.01078783]
[1765519618279,0.02132,92702.0,92694.0,0.24439713]
[1765519618280,0.21575227,92699.0,92698.0,0.01619127]
[1765519618634,0.22653987,92699.0,92698.0,0.01619127]
[1765519618830,0.24485987,92699.0,92698.0,0.01619127]
[1765519619033,0.01832,92699.0,92698.0,0.01619127]
[1765519619259,0.01832,92699.0,92698.0,0.23194565]
[1765519619426,0.01832,92699.0,92698.0,0.01619127]
[1765519619627,0.01932,92699.0,92698.0,0.01619127]
[1765519620419,0.01078771,92698.0,92695.0,0.02863454]
[1765519620630,0.22655255,92694.0,92691.0,0.02863454]
[1765519620792,0.22655255,92694.0,92690.0,0.02863454]
[1765519620793,0.2249294,92692.0,92690.0,0.02863454]
[1765519620995,0.2249294,92692.0,92688.0,0.02863454]
[1765519620996,0.01994853,92691.0,92688.0,0.02863454]
[1765519621216,0.01994853,92691.0,92689.0,0.02863454]
[1765519621417,0.23572165,92690.0,92687.0,0.02863454]
[1765519621619,0.22493872,92688.0,92686.0,0.02863454]
[1765519621820,0.00916,92685.0,92684.0,0.02863454]
[1765519622196,0.01832,92685.0,92684.0,0.02863454]
[1765519623105,0.01832,92685.0,92683.0,0.22657842]
[1765519623311,0.01832,92684.0,92683.0,0.22657842]
[1765519623658,0.01832,92684.0,92683.0,0.02879476]
[1765519623866,0.00916,92684.0,92683.0,0.02879476]
[1765519624364,0.01832,92684.0,92683.0,0.02879476]
[1765519624567,0.01843634,92684.0,92682.0,0.04498603]
[1765519624819,0.01832,92683.0,92682.0,0.04498603]
[1765519625431,0.06287636,92683.0,92682.0,0.04498603]
[1765519625816,0.01832,92683.0,92682.0,0.04498603]
[1765519626215,0.01832,92683.0,92682.0,0.01619127]
[1765519627031,0.00916,92683.0,92682.0,0.01619127]
[1765519627238,0.01016,92683.0,92682.0,0.01619127]
[1765519627396,0.01932,92683.0,92682.0,0.01619127]
[1765519628479,0.02032,92683.0,92682.0,0.01619127]
[1765519629527,0.02948,92683.0,92682.0,0.01619127]
[1765519630005,0.02948,92683.0,92675.0,0.22659735]
[1765519630006,0.21580327,92677.0,92674.0,0.02879476]
[1765519630213,0.21580327,92677.0,92669.0,0.03817939]
[1765519630214,0.27115468,92675.0,92672.0,0.02879476]
[1765519630384,0.00916,92673.0,92671.0,0.02879476]
[1765519630762,0.22658199,92682.0,92676.0,0.01079028]
[1765519630966,0.01078993,92679.0,92675.0,0.01079039]
[1765519631170,0.00916,92675.0,92673.0,0.01079062]
[1765519631527,0.01079016,92677.0,92670.0,0.02879476]
[1765519631528,0.01079062,92673.0,92670.0,0.02879476]
[1765519631735,0.01079144,92666.0,92663.0,0.02879476]
[1765519631971,0.00916,92664.0,92661.0,0.03958678]
[1765519632195,0.2158219,92669.0,92662.0,0.2158382]
[1765519632408,0.01079097,92670.0,92665.0,0.01079156]
[1765519632615,0.00916,92672.0,92669.0,0.01079109]
[1765519633171,0.00916,92670.0,92669.0,0.01079109]
[1765519633711,0.00916,92670.0,92669.0,0.02698236]
[1765519636480,0.01832,92670.0,92669.0,0.01619127]
[1765519639234,0.01932,92670.0,92669.0,0.01619127]
[1765519640088,0.02032,92670.0,92669.0,0.01619127]
[1765519641183,0.04729744,92670.0,92669.0,0.01619127]
[1765519642408,0.02032,92670.0,92669.0,0.01619127]
[1765519643355,0.04729744,92670.0,92669.0,0.01619127]
[1765519643568,0.02032,92670.0,92669.0,0.01619127]
[1765519644018,0.04729744,92670.0,92669.0,0.01619127]
[1765519646762,0.0918538,92670.0,92669.0,0.01619127]
[1765519646997,0.04729744,92670.0,92669.0,0.01619127]
[1765519648049,0.02032,92670.0,92669.0,0.01619127]
[1765519648693,0.04713177,92670.0,92669.0,0.01619127]
[1765519650490,0.03906141,92670.0,92669.0,0.01619127]
[1765519651325,0.02032,92670.0,92669.0,0.01619127]
[1765519651530,0.01079144,92666.0,92662.0,0.01619127]
[1765519651751,0.01079144,92666.0,92662.0,0.02698318]
[1765519651752,0.0269789,92665.0,92662.0,0.02698318]
[1765519651895,0.00916,92663.0,92662.0,0.02698318]
[1765519652300,0.01832,92663.0,92662.0,0.02698318]
[1765519652827,0.06287636,92663.0,92662.0,0.01619127]
[1765519653283,0.27118647,92662.0,92659.0,0.02879476]
[1765519653422,0.01995191,92662.0,92660.0,0.01619127]
[1765519653627,0.00916,92661.0,92660.0,0.01619127]
[1765519653842,0.21584286,92660.0,92659.0,0.02879476]
[1765519654158,0.21584286,92660.0,92646.0,0.02698504]
[1765519654159,0.04455636,92658.0,92657.0,0.02879476]
[1765519654364,0.01079319,92651.0,92648.0,0.02879476]
[1765519654536,0.01079295,92653.0,92648.0,0.02879476]
[1765519654537,0.01079295,92653.0,92650.0,0.0107933]
[1765519654736,0.00916,92652.0,92650.0,0.0107933]
[1765519654936,0.00916,92651.0,92650.0,0.0107933]
[1765519656841,0.01016,92651.0,92650.0,0.0107933]
[1765519657247,0.001,92651.0,92650.0,0.25749903]
[1765519658015,0.00916,92666.0,92664.0,0.2158334]
[1765519658331,0.00916,92666.0,92665.0,0.01619127]
[1765519659345,0.01832,92666.0,92665.0,0.01619127]
[1765519659532,0.02748,92666.0,92665.0,0.01619127]
[1765519660672,0.02848,92666.0,92665.0,0.01619127]
[1765519661308,0.02848,92666.0,92663.0,0.22662652]
[1765519661309,0.02848,92666.0,92664.0,0.01619127]
[1765519661529,0.01016,92666.0,92664.0,0.01619127]
[1765519661737,0.01832,92665.0,92664.0,0.01619127]
[1765519663143,0.0452989,92665.0,92664.0,0.01619127]
[1765519663592,0.22662521,92664.0,92662.0,0.01619127]
[1765519663793,0.03391467,92663.0,92662.0,0.01619127]
[1765519663999,0.04307467,92663.0,92662.0,0.01619127]
[1765519664415,0.26040621,92657.0,92656.0,0.02875528]
[1765519664607,0.26040621,92657.0,92651.0,0.03834037]
[1765519664608,0.04455636,92656.0,92655.0,0.02875528]
[1765519664901,0.05371636,92656.0,92655.0,0.02875528]
[1765519665080,0.08985788,92656.0,92655.0,0.02875528]
[1765519665429,0.08985788,92656.0,92653.0,0.01079295]
[1765519665634,0.00916,92654.0,92653.0,0.01079295]
[1765519665920,0.22663554,92660.0,92656.0,0.0107926]
[1765519666032,0.22663554,92660.0,92654.0,0.01079284]
[1765519666033,0.01995249,92657.0,92654.0,0.01079284]
[1765519666235,0.00916,92655.0,92654.0,0.01079284]
[1765519666476,0.00916,92655.0,92635.0,0.02500138]
[1765519666477,0.0107947,92638.0,92635.0,0.02500138]
[1765519666684,0.24421967,92636.0,92635.0,0.02500138]
[1765519666887,0.02832089,92636.0,92635.0,0.02500138]
[1765519667167,0.25337967,92636.0,92635.0,0.02500138]
[1765519668516,0.25337967,92636.0,92635.0,0.02600138]
[1765519668711,0.25437967,92636.0,92635.0,0.02600138]
[1765519668913,0.27179163,92636.0,92635.0,0.02500138]
[1765519669118,0.3073471,92636.0,92635.0,0.02500138]
[1765519669317,0.33995353,92636.0,92635.0,0.02500138]
[1765519669630,0.28993514,92636.0,92635.0,0.02500138]
[1765519669841,0.30697514,92636.0,92635.0,0.02500138]
[1765519670051,0.30497514,92636.0,92635.0,0.02500138]
[1765519670270,0.30697514,92636.0,92635.0,0.02500138]
[1765519670804,0.29093514,92636.0,92635.0,0.02500138]
[1765519671133,0.24637878,92636.0,92635.0,0.02500138]
[1765519671281,0.03836,92636.0,92635.0,0.02500138]
[1765519671868,0.04752,92636.0,92635.0,0.02500138]